fUSD/lending_fUSD_20250309
["ID","MTS","AMOUNT","RATE_DAILY","PERIOD"]
[355711783,1741495841867,-500.0,9.341e-05,2]
[355711785,1741495841876,-500.0,9.341e-05,2]
[355711787,1741495841886,-500.0,9.341e-05,2]
[355711789,1741495841896,-766.7,9.341e-05,2]
[355711791,1741495841906,-500.0,9.341e-05,2]
[355711793,1741495841916,-500.0,9.341e-05,2]
[355711795,1741495841926,-500.0,9.341e-05,2]
[355711797,1741495841936,-500.0,9.341e-05,2]
[355711799,1741495841946,-500.0,9.341e-05,2]
[355711801,1741495841956,-500.0,9.341e-05,2]
[355711803,1741495841966,-500.0,9.341e-05,2]
[355711805,1741495841976,-500.0,9.341e-05,2]
[355711807,1741495841986,-500.0,9.341e-05,2]
[355711809,1741495841995,-500.0,9.341e-05,2]
[355711811,1741495842005,-1870.41,9.341e-05,2]
[355711813,1741495842015,-500.0,9.341e-05,2]
[355711815,1741495842026,-500.0,9.341e-05,2]
[355711817,1741495842036,-500.0,9.341e-05,2]
[355711819,1741495842046,-500.0,9.341e-05,2]
[355711821,1741495842055,-632.39,9.341e-05,2]
[355711823,1741495842065,-500.0,9.341e-05,2]
[355711825,1741495842074,-300.0,9.341e-05,2]
[355711827,1741495842084,-500.0,9.341e-05,2]
[355711829,1741495842093,-500.0,9.341e-05,2]
[355711831,1741495842103,-500.0,9.341e-05,2]
[355711833,1741495842113,-500.0,9.341e-05,2]
[355711835,1741495842123,-500.0,9.341e-05,2]
[355711837,1741495842132,-500.0,9.341e-05,2]
[355711839,1741495842142,-500.0,9.341e-05,2]
[355711842,1741495842163,-738.81,9.341e-05,2]
[355711844,1741495842175,-500.0,9.341e-05,2]
[355711846,1741495842186,-500.0,9.341e-05,2]
[355711848,1741495842200,-500.0,9.341e-05,2]
[355711850,1741495842210,-500.0,9.341e-05,2]
[355711852,1741495842220,-194.25057361,9.341e-05,2]
[355711854,1741495842230,-500.0,9.341e-05,2]
[355711856,1741495842241,-420.02120376,9.341e-05,2]
[355711858,1741495842251,-500.0,9.341e-05,2]
[355711860,1741495842262,-500.0,9.341e-05,2]
[355711862,1741495842273,-500.0,9.341e-05,2]
[355711864,1741495842284,-500.0,9.341e-05,2]
[355711866,1741495842294,-500.0,9.341e-05,2]
[355711868,1741495842304,-500.0,9.341e-05,2]
[355711870,1741495842314,-500.0,9.341e-05,2]
[355711872,1741495842324,-500.0,9.341e-05,2]
[355711874,1741495842334,-500.0,9.341e-05,2]
[355711876,1741495842344,-500.0,9.341e-05,2]
[355711878,1741495842354,-574.57,9.341e-05,2]
[355711880,1741495842364,-500.0,9.341e-05,2]
[355711882,1741495842374,-510.73178506,9.341e-05,2]
[355711884,1741495842384,-573.53,9.341e-05,2]
[355711886,1741495842395,-500.0,9.341e-05,2]
[355711888,1741495842405,-500.0,9.341e-05,2]
[355711890,1741495842415,-500.0,9.341e-05,2]
[355711892,1741495842425,-500.0,9.341e-05,2]
[355711894,1741495842434,-259.37076063,9.341e-05,2]
[355711896,1741495842444,-551.77,9.341e-05,2]
[355711898,1741495842454,-500.0,9.341e-05,2]
[355711900,1741495842464,-500.0,9.341e-05,2]
[355711902,1741495842474,-500.0,9.341e-05,2]
[355711904,1741495842484,-1155.86,9.341e-05,2]
[355711906,1741495842494,-461.32080283,9.341e-05,2]
[355711908,1741495842504,-220.40779188,9.341e-05,2]
[355711910,1741495842514,-737.78,9.341e-05,2]
[355711912,1741495842524,-500.0,9.341e-05,2]
[355711914,1741495842533,-500.0,9.341e-05,2]
[355711916,1741495842543,-511.26963007,9.341e-05,2]
[355711918,1741495842553,-500.0,9.341e-05,2]
[355711920,1741495842562,-578.81,9.341e-05,2]
[355711922,1741495842572,-500.0,9.341e-05,2]
[355711924,1741495842581,-832.39,9.341e-05,2]
[355711926,1741495842592,-500.0,9.341e-05,2]
[355711928,1741495842602,-500.0,9.341e-05,2]
[355711930,1741495842612,-500.0,9.341e-05,2]
[355711931,1741495842621,-500.0,9.341e-05,2]
[355711932,1741495842631,-500.0,9.341e-05,2]
[355711933,1741495842641,-503.39196912,9.341e-05,2]
[355711934,1741495842651,-502.2156399,9.341e-05,2]
[355711935,1741495842666,-500.0,9.341e-05,2]
[355711936,1741495842676,-1043.95,9.341e-05,2]
[355711937,1741495842686,-1395.19,9.341e-05,2]
[355711938,1741495842695,-840.64,9.341e-05,2]
[355711939,1741495842705,-500.0,9.341e-05,2]
[355711940,1741495842715,-899.94,9.341e-05,2]
[355711941,1741495842725,-500.0,9.341e-05,2]
[355711943,1741495842734,-500.0,9.341e-05,2]
[355711945,1741495842744,-520.32,9.341e-05,2]
[355711947,1741495842754,-500.0,9.341e-05,2]
[355711949,1741495842764,-512.84470576,9.341e-05,2]
[355711951,1741495842774,-500.0,9.341e-05,2]
[355711953,1741495842784,-514.71799312,9.341e-05,2]
[355711955,1741495842794,-802.23,9.341e-05,2]
[355711957,1741495842805,-507.2803698,9.341e-05,2]
[355711959,1741495842815,-500.0,9.341e-05,2]
[355711961,1741495842825,-1944.68,9.341e-05,2]
[355711963,1741495842836,-500.0,9.341e-05,2]
[355711965,1741495842846,-1582.93,9.341e-05,2]
[355711967,1741495842856,-500.0,9.341e-05,2]
[355711969,1741495842866,-500.0,9.341e-05,2]
[355711971,1741495842875,-500.0,9.341e-05,2]
[355711973,1741495842885,-500.0,9.341e-05,2]
[355711975,1741495842895,-500.0,9.341e-05,2]
[355711977,1741495842906,-1592.69,9.341e-05,2]
[355711979,1741495842915,-710.84,9.341e-05,2]
[355711981,1741495842926,-2059.49,9.341e-05,2]
[355711983,1741495842936,-500.0,9.341e-05,2]
[355711985,1741495842946,-504.4261149,9.341e-05,2]
[355711987,1741495842956,-500.0,9.341e-05,2]
[355711990,1741495842966,-500.0,9.341e-05,2]
[355711992,1741495842976,-500.0,9.341e-05,2]
[355711994,1741495842986,-2250.57,9.341e-05,2]
[355711996,1741495842996,-500.0,9.341e-05,2]
[355711998,1741495843006,-9575.65,9.341e-05,2]
[355712000,1741495843015,-508.02326584,9.341e-05,2]
[355712002,1741495843025,-527.03454121,9.341e-05,2]
[355712004,1741495843035,-500.0,9.341e-05,2]
[355712006,1741495843045,-1111.06,9.341e-05,2]
[355712008,1741495843055,-568.81,9.341e-05,2]
[355712011,1741495843065,-500.0,9.341e-05,2]
[355712014,1741495843074,-500.0,9.341e-05,2]
[355712017,1741495843084,-500.0,9.341e-05,2]
[355712020,1741495843094,-500.0,9.341e-05,2]
[355712022,1741495843104,-500.0,9.341e-05,2]
[355712024,1741495843114,-500.0,9.341e-05,2]
[355712026,1741495843124,-883.09,9.341e-05,2]
[355712028,1741495843133,-500.0,9.341e-05,2]
[355712030,1741495843143,-1088.72,9.341e-05,2]
[355712032,1741495843153,-704.36,9.341e-05,2]
[355712034,1741495843167,-500.0,9.341e-05,2]
[355712038,1741495843177,-507.48394204,9.341e-05,2]
[355712041,1741495843187,-500.0,9.341e-05,2]
[355712045,1741495843202,-500.0,9.341e-05,2]
[355712049,1741495843211,-500.0,9.341e-05,2]
[355712054,1741495843220,-500.0,9.341e-05,2]
[355712058,1741495843231,-500.0,9.341e-05,2]
[355712062,1741495843242,-513.43467739,9.341e-05,2]
[355712064,1741495843252,-500.0,9.341e-05,2]
[355712066,1741495843261,-347.05,9.341e-05,2]
[355712068,1741495843272,-185.53796669,9.341e-05,2]
[355712070,1741495843282,-422.46421251,9.341e-05,2]
[355712072,1741495843292,-562.9,9.341e-05,2]
[355712074,1741495843302,-1348.5,9.341e-05,2]
[355712076,1741495843311,-3631.83,9.341e-05,2]
[355712078,1741495843321,-1942.32,9.341e-05,2]
[355712080,1741495843331,-641.48,9.341e-05,2]
[355712082,1741495843341,-500.0,9.341e-05,2]
[355712084,1741495843350,-500.0,9.341e-05,2]
[355712086,1741495843361,-500.0,9.341e-05,2]
[355712088,1741495843371,-503.55153857,9.341e-05,2]
[355712090,1741495843381,-532.01987365,9.341e-05,2]
[355712092,1741495843391,-1223.59,9.341e-05,2]
[355712095,1741495843402,-562.23,9.341e-05,2]
[355712097,1741495843411,-1052.86,9.341e-05,2]
[355712099,1741495843422,-500.0,9.341e-05,2]
[355712101,1741495843432,-509.21688905,9.341e-05,2]
[355712103,1741495843442,-500.0,9.341e-05,2]
[355712105,1741495843452,-500.0,9.341e-05,2]
[355712107,1741495843461,-506.75112729,9.341e-05,2]
[355712109,1741495843471,-518.42608201,9.341e-05,2]
[355712111,1741495843481,-506.21616102,9.341e-05,2]
[355712113,1741495843490,-756.13,9.341e-05,2]
[355712115,1741495843500,-1564.11,9.341e-05,2]
[355712117,1741495843510,-500.0,9.341e-05,2]
[355712119,1741495843519,-515.29529081,9.341e-05,2]
[355712121,1741495843530,-500.0,9.341e-05,2]
[355712123,1741495843539,-6362.87,9.341e-05,2]
[355712125,1741495843550,-506.55814174,9.341e-05,2]
[355712127,1741495843560,-523.37274842,9.341e-05,2]
[355712129,1741495843570,-500.0,9.341e-05,2]
[355712131,1741495843580,-584.34353266,9.341e-05,2]
[355712133,1741495843590,-505.19950145,9.341e-05,2]
[355712135,1741495843600,-500.0,9.341e-05,2]
[355712137,1741495843610,-525.45641108,9.341e-05,2]
[355712139,1741495843619,-4926.94,9.341e-05,2]
[355712141,1741495843629,-500.0,9.341e-05,2]
[355712143,1741495843639,-500.0,9.341e-05,2]
[355712145,1741495843648,-435.11838461,9.341e-05,2]
[355712147,1741495843658,-680.57,9.341e-05,2]
[355712149,1741495843668,-673.87,9.341e-05,2]
[355712153,1741495843677,-533.08927549,9.341e-05,2]
[355712154,1741495843687,-660.22,9.341e-05,2]
[355712157,1741495843697,-411.26405712,9.341e-05,2]
[355712160,1741495843707,-518.65131255,9.341e-05,2]
[355712162,1741495843716,-748.07,9.341e-05,2]
[355712164,1741495843726,-513.06432672,9.341e-05,2]
[355712166,1741495843736,-521.0,9.341e-05,2]
[355712168,1741495843745,-500.0,9.341e-05,2]
[355712170,1741495843755,-500.0,9.341e-05,2]
[355712172,1741495843765,-508.76043465,9.341e-05,2]
[355712174,1741495843774,-500.0,9.341e-05,2]
[355712176,1741495843784,-510.27603787,9.341e-05,2]
[355712178,1741495843793,-500.0,9.341e-05,2]
[355712180,1741495843803,-568.85,9.341e-05,2]
[355712182,1741495843812,-521.96560344,9.341e-05,2]
[355712184,1741495843822,-864.56,9.341e-05,2]
[355712186,1741495843831,-500.0,9.341e-05,2]
[355712188,1741495843842,-500.0,9.341e-05,2]
[355712190,1741495843851,-538.75256849,9.341e-05,2]
[355712192,1741495843861,-500.0,9.341e-05,2]
[355712194,1741495843871,-507.04674725,9.341e-05,2]
[355712196,1741495843880,-512.13991457,9.341e-05,2]
[355712198,1741495843890,-500.0,9.341e-05,2]
[355712200,1741495843899,-517.13810916,9.341e-05,2]
[355712202,1741495843909,-503.32511187,9.341e-05,2]
[355712204,1741495843919,-500.0,9.341e-05,2]
[355712206,1741495843929,-1193.72,9.341e-05,2]
[355712208,1741495843938,-500.0,9.341e-05,2]
[355712210,1741495843948,-524.22423204,9.341e-05,2]
[355712212,1741495843957,-500.0,9.341e-05,2]
[355712214,1741495843967,-520.36718626,9.341e-05,2]
[355712216,1741495843976,-500.0,9.341e-05,2]
[355712218,1741495843985,-3843.8,9.341e-05,2]
[355712220,1741495843995,-500.0,9.341e-05,2]
[355712222,1741495844004,-500.0,9.341e-05,2]
[355712224,1741495844014,-510.11343458,9.341e-05,2]
[355712226,1741495844023,-521.95917921,9.341e-05,2]
[355712228,1741495844033,-517.18350358,9.341e-05,2]
[355712230,1741495844043,-500.0,9.341e-05,2]
[355712232,1741495844053,-500.0,9.341e-05,2]
[355712234,1741495844063,-753.41,9.341e-05,2]
[355712236,1741495844072,-515.1921387,9.341e-05,2]
[355712238,1741495844082,-2176.44,9.341e-05,2]
[355712240,1741495844091,-716.69,9.341e-05,2]
[355712242,1741495844101,-1508.23,9.341e-05,2]
[355712244,1741495844111,-2216.9,9.341e-05,2]
[355712246,1741495844121,-1122.14,9.341e-05,2]
[355712248,1741495844130,-506.86307358,9.341e-05,2]
[355712250,1741495844140,-208.532071,9.341e-05,2]
[355712252,1741495844149,-512.29010369,9.341e-05,2]
[355712254,1741495844159,-992.57,9.341e-05,2]
[355712256,1741495844168,-500.0,9.341e-05,2]
[355712257,1741495844178,-500.0,9.341e-05,2]
[355712259,1741495844188,-504.13,9.341e-05,2]
[355712262,1741495844201,-500.0,9.341e-05,2]
[355712263,1741495844210,-500.0,9.341e-05,2]
[355712265,1741495844220,-1078.94,9.341e-05,2]
[355712267,1741495844230,-500.0,9.341e-05,2]
[355712269,1741495844241,-514.26567893,9.341e-05,2]
[355712272,1741495844251,-1267.31,9.341e-05,2]
[355712274,1741495844261,-1078.27,9.341e-05,2]
[355712276,1741495844270,-500.0,9.341e-05,2]
[355712277,1741495844282,-408.82373752,9.341e-05,2]
[355712279,1741495844293,-502.93101282,9.341e-05,2]
[355712281,1741495844303,-510.45695665,9.341e-05,2]
[355712283,1741495844313,-1596.15,9.341e-05,2]
[355712285,1741495844323,-1770.79,9.341e-05,2]
[355712314,1741495844595,-591.48654669,9.341e-05,2]
[355712316,1741495844606,-503.11536031,9.341e-05,2]
[355712318,1741495844618,-1882.59,9.341e-05,2]
[355712320,1741495844628,-250000.0,9.342e-05,2]
[355712322,1741495844639,-1553.78,9.342e-05,2]
[355712324,1741495844649,-937.82461428,9.342e-05,3]
[355712326,1741495844659,-568.46,9.342e-05,2]
[355712328,1741495844668,-500.0,9.342e-05,2]
[355712330,1741495844679,-1193.78,9.342e-05,2]
[355712332,1741495844689,-500.0,9.342e-05,2]
[355712334,1741495844699,-500.0,9.342e-05,2]
[355712336,1741495844708,-500.0,9.342e-05,2]
[355712338,1741495844718,-500.0,9.342e-05,2]
[355712340,1741495844728,-635.718577,9.342e-05,2]
[355712342,1741495844737,-695.44288763,9.343e-05,2]
[355712344,1741495844746,-393225.84935822,9.343e-05,2]
[355712346,1741495844756,-186865.28252569,9.343e-05,2]
[355712349,1741495844776,-439.21,9.343e-05,2]
[355712376,1741495845153,-17359.63590952,9.343e-05,2]
[355712379,1741495845167,-10913.58791807,9.343e-05,2]
[355712533,1741495846649,-301.616,9.343e-05,2]
[355712535,1741495846667,-673.82,9.343e-05,2]
[355712538,1741495846683,-1780.87256666,9.343e-05,2]
[355713431,1741495996450,500.0,0.00025999,120]
[355713433,1741496046887,200.0,0.00028,120]
[355713434,1741496049654,200.0,0.00028,120]
[355713435,1741496061394,200.0,0.00028,120]
[355713436,1741496104779,166.0,0.00028,120]
[355713437,1741496213903,4957.42405,0.00028,120]
[355713438,1741496415556,1438.48,8.04e-05,2]
[355713439,1741496563254,500.0,0.00028,120]
[355713440,1741496647802,2000.0,8.051e-05,2]
[355713441,1741496745047,23900.0,8.065e-05,2]
[355713595,1741497031580,-250.0,8.219e-05,2]
[355713596,1741497031591,-1000.0,8.219e-05,2]
[355713597,1741497031602,-2180.54,8.219e-05,2]
[355713598,1741497031612,-550.0,8.239e-05,2]
[355713599,1741497031621,-150.0,8.239e-05,2]
[355713600,1741497031631,-180.0,8.3e-05,2]
[355713601,1741497031642,-180.0,8.3e-05,2]
[355713602,1741497031662,-180.0,8.3e-05,2]
[355713603,1741497031675,-180.0,8.3e-05,2]
[355713604,1741497031685,-184.17,8.3e-05,2]
[355713605,1741497031695,-590.69,8.632e-05,2]
[355713606,1741497031705,-590.69,8.659e-05,2]
[355713607,1741497031715,-590.69,8.686e-05,2]
[355713608,1741497031725,-150.0,8.689e-05,2]
[355713609,1741497031735,-441.65,8.69e-05,2]
[355713610,1741497031746,-778.48,8.69e-05,2]
[355713611,1741497031755,-778.48,8.69e-05,2]
[355713612,1741497031765,-441.65,8.69e-05,2]
[355713613,1741497031775,-150.0,8.69e-05,2]
[355713614,1741497031785,-441.65,8.69e-05,2]
[355713615,1741497031795,-778.48,8.69e-05,2]
[355713617,1741497031805,-441.65,8.69e-05,2]
[355713619,1741497031815,-778.48,8.69e-05,2]
[355713621,1741497031825,-150.0,8.69e-05,2]
[355713623,1741497031835,-441.65,8.69e-05,2]
[355713625,1741497031845,-778.48,8.69e-05,2]
[355713627,1741497031855,-150.0,8.69e-05,2]
[355713629,1741497031865,-439.91,8.69e-05,2]
[355713631,1741497031875,-778.48,8.69e-05,2]
[355713633,1741497031886,-150.0,8.69e-05,2]
[355713635,1741497031897,-239.69,8.69e-05,2]
[355713637,1741497031907,-150.0,8.69e-05,2]
[355713639,1741497031918,-151.92,8.69e-05,2]
[355713641,1741497031928,-778.48,8.69e-05,2]
[355713642,1741497031937,-778.48,8.69e-05,2]
[355713644,1741497031947,-590.69,8.714e-05,2]
[355713645,1741497031958,-5024.97,8.722e-05,2]
[355713646,1741497031968,-3019.04,8.741e-05,2]
[355713647,1741497031978,-150.99,8.741e-05,2]
[355713648,1741497031988,-7400.41,8.741e-05,2]
[355713649,1741497031998,-638.51,8.741e-05,2]
[355713650,1741497032008,-590.69,8.741e-05,2]
[355713651,1741497032018,-440.76,8.748e-05,2]
[355713652,1741497032028,-300.0,8.748e-05,2]
[355713653,1741497032038,-150.0,8.748e-05,2]
[355713654,1741497032049,-440.76,8.748e-05,2]
[355713655,1741497032059,-150.0,8.748e-05,2]
[355713656,1741497032069,-440.76,8.748e-05,2]
[355713657,1741497032080,-150.0,8.748e-05,2]
[355713658,1741497032090,-440.76,8.748e-05,2]
[355713659,1741497032100,-590.69,8.768e-05,2]
[355713660,1741497032110,-590.69,8.795e-05,2]
[355713661,1741497032120,-349.51,8.798e-05,2]
[355713662,1741497032130,-301.36,8.798e-05,2]
[355713663,1741497032139,-150.0,8.798e-05,2]
[355713664,1741497032149,-151.19,8.798e-05,2]
[355713665,1741497032166,-355.72,8.798e-05,2]
[355713666,1741497032179,-881.18,8.798e-05,2]
[355713667,1741497032190,-150.0,8.798e-05,2]
[355713668,1741497032201,-150.0,8.798e-05,2]
[355713669,1741497032212,-150.0,8.798e-05,2]
[355713670,1741497032222,-150.0,8.798e-05,2]
[355713671,1741497032233,-150.0,8.798e-05,2]
[355713672,1741497032243,-150.0,8.798e-05,2]
[355713673,1741497032254,-150.0,8.798e-05,2]
[355713674,1741497032264,-150.0,8.798e-05,2]
[355713675,1741497032274,-150.0,8.798e-05,2]
[355713676,1741497032284,-150.0,8.798e-05,2]
[355713677,1741497032294,-150.0,8.798e-05,2]
[355713678,1741497032304,-150.0,8.798e-05,2]
[355713679,1741497032314,-150.36,8.798e-05,2]
[355713680,1741497032325,-304.71,8.798e-05,2]
[355713681,1741497032336,-590.69,8.823e-05,2]
[355713682,1741497032349,-590.69,8.85e-05,2]
[355713683,1741497032361,-590.69,8.877e-05,2]
[355713684,1741497032371,-172.26,8.893e-05,2]
[355713685,1741497032382,-590.69,8.904e-05,2]
[355713686,1741497032395,-590.69,8.932e-05,2]
[355713687,1741497032406,-590.69,8.959e-05,2]
[355713688,1741497032416,-590.69,8.986e-05,2]
[355713689,1741497032427,-7733.25107497,9.003e-05,2]
[355713690,1741497032438,-590.69,9.013e-05,2]
[355713691,1741497032448,-590.69,9.041e-05,2]
[355713692,1741497032458,-550.0,9.041e-05,2]
[355713693,1741497032469,-150.0,9.041e-05,2]
[355713694,1741497032480,-428.87354052,9.041e-05,2]
[355713873,1741497039531,-121.12645948,9.041e-05,2]
[355713875,1741497039542,-150.0,9.041e-05,2]
[355713877,1741497039552,-1438.48,9.045e-05,2]
[355713879,1741497039564,-590.69,9.068e-05,2]
[355713881,1741497039575,-590.69,9.095e-05,2]
[355713882,1741497039585,-590.69,9.122e-05,2]
[355713883,1741497039595,-590.69,9.15e-05,2]
[355713884,1741497039607,-989.55,9.178e-05,2]
[355713885,1741497039617,-344.93,9.178e-05,2]
[355713886,1741497039626,-344.93,9.178e-05,2]
[355713887,1741497039637,-344.93,9.178e-05,2]
[355713888,1741497039649,-2500.0,9.24e-05,2]
[355713889,1741497039659,-3002.4425,9.241e-05,2]
[355713890,1741497039669,-3461.8882,9.241e-05,2]
[355713891,1741497039679,-25913.2957,9.241e-05,2]
[355713892,1741497039689,-578.5221,9.241e-05,2]
[355713894,1741497039698,-1917.1245,9.243e-05,2]
[355713896,1741497039708,-1000.0,9.247e-05,2]
[355713898,1741497039718,-200.0,9.3e-05,2]
[355713900,1741497039728,-200.0,9.3e-05,2]
[355713902,1741497039738,-5275.0,9.315e-05,2]
[355713904,1741497039748,-500.0,9.323e-05,2]
[355713906,1741497039760,-456.31950689,9.323e-05,2]
[355713908,1741497039770,-504.21256498,9.323e-05,2]
[355713910,1741497039780,-160.27141342,9.323e-05,2]
[355713912,1741497039790,-168.55683053,9.323e-05,2]
[355713914,1741497039799,-1122.14,9.339e-05,2]
[355713916,1741497039810,-1204.29,9.339e-05,2]
[355713918,1741497039819,-500.0,9.339e-05,2]
[355713920,1741497039830,-1388.4,9.339e-05,2]
[355713922,1741497039840,-850.41,9.339e-05,2]
[355713924,1741497039849,-849.49524,9.339e-05,2]
[355713926,1741497039859,-1991.17,9.339e-05,2]
[355713928,1741497039869,-1132.277406,9.339e-05,2]
[355713930,1741497039880,-500.0,9.339e-05,2]
[355713932,1741497039890,-610.2,9.339e-05,2]
[355713934,1741497039900,-154.363377,9.339e-05,2]
[355713937,1741497039910,-859.79,9.339e-05,2]
[355713939,1741497039920,-500.0,9.339e-05,2]
[355713941,1741497039929,-1233.1,9.339e-05,2]
[355713943,1741497039939,-931.03,9.339e-05,2]
[355713945,1741497039949,-635.38,9.339e-05,2]
[355713947,1741497039958,-1517.89,9.339e-05,2]
[355713949,1741497039968,-797.21,9.339e-05,2]
[355713951,1741497039977,-746.9,9.339e-05,2]
[355713953,1741497039987,-1736.45,9.339e-05,2]
[355713955,1741497039996,-2472.41,9.339e-05,2]
[355713957,1741497040006,-965.78,9.339e-05,2]
[355713959,1741497040015,-500.0,9.339e-05,2]
[355713961,1741497040025,-682.11,9.339e-05,2]
[355713963,1741497040035,-824.65,9.339e-05,2]
[355713965,1741497040045,-602.54,9.339e-05,2]
[355713967,1741497040054,-1134.54,9.339e-05,2]
[355713969,1741497040063,-605.96,9.339e-05,2]
[355713971,1741497040073,-4029.03,9.339e-05,2]
[355713973,1741497040083,-500.37,9.339e-05,2]
[355713975,1741497040092,-500.0,9.339e-05,2]
[355713977,1741497040102,-846.3,9.339e-05,2]
[355713979,1741497040112,-1344.71,9.339e-05,2]
[355713981,1741497040121,-500.0,9.339e-05,2]
[355713983,1741497040131,-500.0,9.339e-05,2]
[355713985,1741497040141,-500.0,9.339e-05,2]
[355713987,1741497040150,-500.0,9.339e-05,2]
[355713989,1741497040160,-1435.56,9.339e-05,2]
[355713991,1741497040170,-1180.49,9.339e-05,2]
[355713993,1741497040181,-500.0,9.339e-05,2]
[355713995,1741497040191,-645.79,9.339e-05,2]
[355713997,1741497040200,-500.0,9.339e-05,2]
[355713999,1741497040210,-2466.8,9.339e-05,2]
[355714001,1741497040219,-500.0,9.339e-05,2]
[355714003,1741497040229,-500.0,9.339e-05,2]
[355714005,1741497040238,-2070.12,9.339e-05,2]
[355714007,1741497040247,-925.94,9.339e-05,2]
[355714009,1741497040257,-870.52,9.339e-05,2]
[355714011,1741497040266,-1092.54,9.339e-05,2]
[355714013,1741497040276,-1144.43,9.339e-05,2]
[355714015,1741497040286,-500.0,9.339e-05,2]
[355714017,1741497040295,-527.0,9.339e-05,2]
[355714019,1741497040304,-540.13,9.339e-05,2]
[355714021,1741497040314,-809.01,9.339e-05,2]
[355714023,1741497040324,-828.4,9.339e-05,2]
[355714025,1741497040334,-835.45,9.339e-05,2]
[355714027,1741497040343,-5180.14,9.339e-05,2]
[355714029,1741497040352,-1786.09,9.339e-05,2]
[355714031,1741497040362,-500.0,9.339e-05,2]
[355714033,1741497040372,-2435.86,9.339e-05,2]
[355714035,1741497040381,-566.38,9.339e-05,2]
[355714037,1741497040391,-500.0,9.339e-05,2]
[355714039,1741497040401,-500.0,9.339e-05,2]
[355714041,1741497040411,-585.5,9.339e-05,2]
[355714043,1741497040420,-500.0,9.339e-05,2]
[355714045,1741497040430,-500.0,9.339e-05,2]
[355714047,1741497040439,-500.0,9.339e-05,2]
[355714049,1741497040449,-593.15,9.339e-05,2]
[355714051,1741497040458,-800.93,9.339e-05,2]
[355714053,1741497040468,-500.0,9.339e-05,2]
[355714055,1741497040477,-524.61282499,9.339e-05,2]
[355714057,1741497040486,-500.0,9.339e-05,2]
[355714059,1741497040496,-4038.61,9.339e-05,2]
[355714061,1741497040505,-500.0,9.339e-05,2]
[355714064,1741497040522,-530.76,9.339e-05,2]
[355714066,1741497040537,-2140.75,9.339e-05,2]
[355714069,1741497040553,-504.13,9.339e-05,2]
[355714071,1741497040570,-708.53,9.339e-05,2]
[355714074,1741497040583,-684.7173398,9.34e-05,2]
[355714076,1741497040594,-500.0,9.34e-05,2]
[355714078,1741497040608,-500.0,9.34e-05,2]
[355714081,1741497040622,-500.0,9.34e-05,2]
[355714083,1741497040635,-500.0,9.34e-05,2]
[355714086,1741497040650,-500.0,9.34e-05,2]
[355714088,1741497040663,-500.0,9.34e-05,2]
[355714090,1741497040679,-526.04441461,9.34e-05,2]
[355714093,1741497040692,-500.0,9.34e-05,2]
[355714095,1741497040705,-500.0,9.34e-05,2]
[355714097,1741497040717,-510.67791835,9.34e-05,2]
[355714100,1741497040728,-500.27,9.34e-05,2]
[355714102,1741497040739,-454.76075279,9.34e-05,2]
[355714104,1741497040753,-500.0,9.34e-05,2]
[355714107,1741497040766,-500.0,9.34e-05,2]
[355714109,1741497040780,-500.0,9.34e-05,2]
[355714111,1741497040792,-500.0,9.34e-05,2]
[355714114,1741497040805,-500.0,9.34e-05,2]
[355714116,1741497040818,-500.0,9.34e-05,2]
[355714119,1741497040832,-500.0,9.34e-05,2]
[355714121,1741497040845,-500.0,9.34e-05,2]
[355714123,1741497040860,-500.0,9.34e-05,2]
[355714126,1741497040873,-500.0,9.34e-05,2]
[355714128,1741497040886,-500.0,9.34e-05,2]
[355714131,1741497040902,-500.0,9.34e-05,2]
[355714133,1741497040914,-193.81415004,9.34e-05,2]
[355714135,1741497040928,-500.0,9.34e-05,2]
[355714138,1741497040941,-500.0,9.34e-05,2]
[355714140,1741497040954,-500.0,9.34e-05,2]
[355714142,1741497040968,-501.54206522,9.34e-05,2]
[355714145,1741497040980,-500.0,9.34e-05,2]